{"text_format":"1","workbook":"xlsx","n_sheets":11,"sheets":["REKAPITULACE","REKAPITULACE POLOŽKOVÁ","1.NP - LDN A","2.NP - LDN A","1.NP-LDN B","2.NP-LDN B","1.NP-LDN-A-Revmatologie","2.NP-LDN-A4.I","3.NP-Interna","4.NP-Rehabilitace","List1"],"not_rendered":{"charts":0,"images":0,"macros":1,"external_links":0,"defined_names":0,"comments":0,"pivot_tables":0},"unopened":[],"bounds":{"document_bytes":16777216,"sheet_cells":100000,"rows_first":2000,"rows_last":500,"rows_between":2000,"halvings":0,"cell_chars":16384,"cell_head_chars":4096},"cells_cut":0,"cells_raw":0,"read":"whole","date_system":"1900"}

{"sheet":"REKAPITULACE","index":0,"n_rows":29,"n_cols":3,"rows_kept":29,"cut":false,"hidden":false,"merged":[[28,0,28,7],[31,0,31,7],[22,0,22,2],[23,0,23,1],[25,0,25,1],[26,0,27,2],[21,0,21,1],[15,0,15,1],[0,0,3,2],[4,0,5,2],[6,0,7,2],[8,0,8,2],[9,0,9,2],[10,0,11,2],[12,0,12,2],[13,0,13,1],[14,0,14,1],[16,0,16,1],[17,0,17,1],[18,0,18,1],[19,0,19,1],[20,0,20,1]]}
[" Výkaz výměr - REKAPITULACE - Technologie"]
[]
[]
[]
["Název zakázky: Nemocnice Nový Bydžov - Kompletní výměna dorozumívacích zařízení sestra - pacient"]
[]
["Zadavatel: Oblastní nemocnice Jičín, a.s.,Bolzanova 512, Valdické Předměstí, 506 01 Jičín"]
[]
["Objekt: Nemocnice Nový Bydžov"]
[]
[]
[]
["Rekapitulace nabídky:"]
["Oddělení:",null,"Cena bez DPH:"]
["Půdorys 1.NP - Budova LDN - A",null,{"$f":"'1.NP - LDN A'!I62","v":0}]
["Půdorys 2.NP - Budova LDN - A",null,{"$f":"'2.NP - LDN A'!I62","v":0}]
["Půdorys 1.NP - Budova LDN - B",null,{"$f":"'1.NP-LDN B'!I62","v":0}]
["Půdorys 2.NP - Budova LDN - B",null,{"$f":"'2.NP-LDN B'!I62","v":0}]
["Půdorys 1.NP - Budova LDN - A - Revmatologie",null,{"$f":"'1.NP-LDN-A-Revmatologie'!I62","v":0}]
["Půdorys 2.NP - Budova LDN - A4 - I",null,{"$f":"'2.NP-LDN-A4.I'!I62","v":0}]
["Půdorys 3.NP - Budova Interna",null,{"$f":"'3.NP-Interna'!I62","v":0}]
["Půdorys 4.NP - Budova Rehabilitace",null,{"$f":"'4.NP-Rehabilitace'!I62","v":0}]
[]
["Cena celkem - cena bez DPH:",null,{"$f":"SUM(C15:C22)","v":0}]
["DPH 21%:",0.21,{"$f":"C24*B25","v":0}]
["Cena celkem s DPH",null,{"$f":"C24+C25","v":0}]
[]
[]
["Ceny jsou uvedeny v cenové relaci roku 2024 v Kč.  "]

{"sheet":"REKAPITULACE POLOŽKOVÁ","index":1,"n_rows":65,"n_cols":10,"rows_kept":65,"cut":false,"hidden":false,"merged":[[61,1,61,7],[62,1,62,8],[63,1,63,8],[66,1,66,8],[0,1,0,8],[1,1,1,8],[2,1,2,8],[3,1,4,1],[3,2,4,2],[3,3,4,3],[3,4,4,4],[3,5,3,6],[3,7,3,8]]}
[null,"Výkaz výměr  \"Nemocnice Nový Bydžov - Kompletní výměna dorozumívacích zařízení sestra - pacient\""]
[null,"Objekt: Nemocnice Nový Bydžov - Budova LDN - A _REKAPITULACE POLOŽKOVÁ"]
[]
[null,"Název","Označení","MJ","Množství","materiál",null,"montáž"]
[null,null,null,null,null,"cena/ks","celkem","cena/ks","celkem"]
[null,"Dodávka a montáž technologie "]
[1,"Hlavní terminál, vč. adaptéru a kabelu k terminálu 2m (Touch screen monitor min. 10,4\", hlasitá a diskrétní komunikace, identifikace volajícího včetně jména klienta, možnost zobrazení informací z EPS, poslech radiových stanic na hlavním terminálu, volba IP radiostanic přímo na hlavním terminálu v uživatelském menu. Možnost integrace s bezdrátovým systémem a zobrazení bezdrátových bezpečnostních tlačítek s funkcí hlídání průchodu klientů zakázanou zónou, ve spojení s IP kamerou zobrazení online přenosu od vchodu na oddělení)","MT - 07 IP","ks",{"$f":"'1.NP - LDN A'!E7+'2.NP - LDN A'!E7+'1.NP-LDN B'!E7+'2.NP-LDN B'!E7+'1.NP-LDN-A-Revmatologie'!E7+'2.NP-LDN-A4.I'!E7+'3.NP-Interna'!E7+'4.NP-Rehabilitace'!E7","v":8},0,{"$f":"E7*F7","v":0},"x","x"]
[null,"Zásuvka terminálu","CMT-07 IP","ks",{"$f":"'1.NP - LDN A'!E8+'2.NP - LDN A'!E8+'1.NP-LDN B'!E8+'2.NP-LDN B'!E8+'1.NP-LDN-A-Revmatologie'!E8+'2.NP-LDN-A4.I'!E8+'3.NP-Interna'!E8+'4.NP-Rehabilitace'!E8","v":8},0,0,0,{"$f":"E8*H8","v":0}]
[6,"Datový rozvaděč nástěnný 19\"/15U - nástěnný\n600 x 770 x 395 mm, 22,2 kg","RA-07/15U","ks",{"$f":"'1.NP - LDN A'!E9+'2.NP - LDN A'!E9+'1.NP-LDN B'!E9+'2.NP-LDN B'!E9+'1.NP-LDN-A-Revmatologie'!E9+'2.NP-LDN-A4.I'!E9+'3.NP-Interna'!E9+'4.NP-Rehabilitace'!E9","v":8},0,0,0,{"$f":"E9*H9","v":0}]
[11,"Napájecí zdroj + lokální server ","PS-07 IP","ks",{"$f":"'1.NP - LDN A'!E10+'2.NP - LDN A'!E10+'1.NP-LDN B'!E10+'2.NP-LDN B'!E10+'1.NP-LDN-A-Revmatologie'!E10+'2.NP-LDN-A4.I'!E10+'3.NP-Interna'!E10+'4.NP-Rehabilitace'!E10","v":8},0,0,0,{"$f":"E10*H10","v":0}]
[12,"Rozvodný panel 8x 230V 19\"/2U","PDP 19\"/2U","ks",{"$f":"'1.NP - LDN A'!E11+'2.NP - LDN A'!E11+'1.NP-LDN B'!E11+'2.NP-LDN B'!E11+'1.NP-LDN-A-Revmatologie'!E11+'2.NP-LDN-A4.I'!E11+'3.NP-Interna'!E11+'4.NP-Rehabilitace'!E11","v":8},0,0,0,{"$f":"E11*H11","v":0}]
[13,"Záložní zdroj 230V, 1200VA","UPS1200VA","ks",{"$f":"'1.NP - LDN A'!E12+'2.NP - LDN A'!E12+'1.NP-LDN B'!E12+'2.NP-LDN B'!E12+'1.NP-LDN-A-Revmatologie'!E12+'2.NP-LDN-A4.I'!E12+'3.NP-Interna'!E12+'4.NP-Rehabilitace'!E12","v":8},0,0,0,{"$f":"E12*H12","v":0}]
[null,"SW - licence pro Hlavní terminál","SW - MT","ks",{"$f":"'1.NP - LDN A'!E13+'2.NP - LDN A'!E13+'1.NP-LDN B'!E13+'2.NP-LDN B'!E13+'1.NP-LDN-A-Revmatologie'!E13+'2.NP-LDN-A4.I'!E13+'3.NP-Interna'!E13+'4.NP-Rehabilitace'!E13","v":8},0,0,"x","x"]
[15,"SW - licence provozu účastníka","SW - L1","ks",{"$f":"'1.NP - LDN A'!E14+'2.NP - LDN A'!E14+'1.NP-LDN B'!E14+'2.NP-LDN B'!E14+'1.NP-LDN-A-Revmatologie'!E14+'2.NP-LDN-A4.I'!E14+'3.NP-Interna'!E14+'4.NP-Rehabilitace'!E14","v":238},0,0,"x","x"]
[16,"SW - databáze historie volání","SW - HC","ks",{"$f":"'1.NP - LDN A'!E15+'2.NP - LDN A'!E15+'1.NP-LDN B'!E15+'2.NP-LDN B'!E15+'1.NP-LDN-A-Revmatologie'!E15+'2.NP-LDN-A4.I'!E15+'3.NP-Interna'!E15+'4.NP-Rehabilitace'!E15","v":8},0,0,"x","x"]
[17,"SW - aktivace sdruženého provozu","SW - AW","ks",{"$f":"'1.NP - LDN A'!E16+'2.NP - LDN A'!E16+'1.NP-LDN B'!E16+'2.NP-LDN B'!E16+'1.NP-LDN-A-Revmatologie'!E16+'2.NP-LDN-A4.I'!E16+'3.NP-Interna'!E16+'4.NP-Rehabilitace'!E16","v":8},0,0,"x","x"]
[18,"SW - prohlížeč historie","SW - SQLHV","ks",{"$f":"'1.NP - LDN A'!E17+'2.NP - LDN A'!E17+'1.NP-LDN B'!E17+'2.NP-LDN B'!E17+'1.NP-LDN-A-Revmatologie'!E17+'2.NP-LDN-A4.I'!E17+'3.NP-Interna'!E17+'4.NP-Rehabilitace'!E17","v":8},0,0,"x","x"]
[null,"SW - bezdrátový modul","SW-WR","ks",16,0,0,"x","x"]
[25,"Univerzální police 19\"/1U","US 19\"/1U","ks",{"$f":"'1.NP - LDN A'!E19+'2.NP - LDN A'!E19+'1.NP-LDN B'!E19+'2.NP-LDN B'!E19+'1.NP-LDN-A-Revmatologie'!E19+'2.NP-LDN-A4.I'!E19+'3.NP-Interna'!E19+'4.NP-Rehabilitace'!E19","v":8},0,0,0,{"$f":"E19*H19","v":0}]
[null,"24\" LCD panel jednostranný na zeď s příslušenstvím","LCD-OW","ks",{"$f":"'1.NP - LDN A'!E20+'2.NP - LDN A'!E20+'1.NP-LDN B'!E20+'2.NP-LDN B'!E20+'1.NP-LDN-A-Revmatologie'!E20+'2.NP-LDN-A4.I'!E20+'3.NP-Interna'!E20+'4.NP-Rehabilitace'!E20","v":1},0,0,0,{"$f":"E20*H20","v":0}]
[28,"Telefonní zásuvka IN-OUT","TC","ks",{"$f":"'1.NP - LDN A'!E21+'2.NP - LDN A'!E21+'1.NP-LDN B'!E21+'2.NP-LDN B'!E21+'1.NP-LDN-A-Revmatologie'!E21+'2.NP-LDN-A4.I'!E21+'3.NP-Interna'!E21+'4.NP-Rehabilitace'!E21","v":8},0,0,0,{"$f":"E21*H21","v":0}]
[null,"Audio zásuvka","AC","ks",{"$f":"'1.NP - LDN A'!E22+'2.NP - LDN A'!E22+'1.NP-LDN B'!E22+'2.NP-LDN B'!E22+'1.NP-LDN-A-Revmatologie'!E22+'2.NP-LDN-A4.I'!E22+'3.NP-Interna'!E22+'4.NP-Rehabilitace'!E22","v":8},0,0,0,{"$f":"E22*H22","v":0}]
[29,"DECT Phone - (bezdrátový telefon DECT - analogová linka)","DECT PHONE","ks",{"$f":"'1.NP - LDN A'!E23+'2.NP - LDN A'!E23+'1.NP-LDN B'!E23+'2.NP-LDN B'!E23+'1.NP-LDN-A-Revmatologie'!E23+'2.NP-LDN-A4.I'!E23+'3.NP-Interna'!E23+'4.NP-Rehabilitace'!E23","v":8},0,0,0,{"$f":"E23*H23","v":0}]
[24,"Kabel telefonní přípojky","CTC","ks",{"$f":"'1.NP - LDN A'!E24+'2.NP - LDN A'!E24+'1.NP-LDN B'!E24+'2.NP-LDN B'!E24+'1.NP-LDN-A-Revmatologie'!E24+'2.NP-LDN-A4.I'!E24+'3.NP-Interna'!E24+'4.NP-Rehabilitace'!E24","v":8},0,0,"x","x"]
[124,"Repeater","Repeater","ks",{"$f":"'1.NP - LDN A'!E25+'2.NP - LDN A'!E25+'1.NP-LDN B'!E25+'2.NP-LDN B'!E25+'1.NP-LDN-A-Revmatologie'!E25+'2.NP-LDN-A4.I'!E25+'3.NP-Interna'!E25+'4.NP-Rehabilitace'!E25","v":8},0,0,0,{"$f":"E25*H25","v":0}]
[31,"Telefonní interface (pro analog. přístr.)","TI - 07 IP","ks",{"$f":"'1.NP - LDN A'!E26+'2.NP - LDN A'!E26+'1.NP-LDN B'!E26+'2.NP-LDN B'!E26+'1.NP-LDN-A-Revmatologie'!E26+'2.NP-LDN-A4.I'!E26+'3.NP-Interna'!E26+'4.NP-Rehabilitace'!E26","v":8},0,0,0,0]
[30,"Analog/VoIP brána","AG-07 IP","ks",{"$f":"'1.NP - LDN A'!E27+'2.NP - LDN A'!E27+'1.NP-LDN B'!E27+'2.NP-LDN B'!E27+'1.NP-LDN-A-Revmatologie'!E27+'2.NP-LDN-A4.I'!E27+'3.NP-Interna'!E27+'4.NP-Rehabilitace'!E27","v":8},0,0,0,0]
[34,"Datový switch 24 portů/19\" (CZ)","SWI - 24/19\"","ks",{"$f":"'1.NP - LDN A'!E28+'2.NP - LDN A'!E28+'1.NP-LDN B'!E28+'2.NP-LDN B'!E28+'1.NP-LDN-A-Revmatologie'!E28+'2.NP-LDN-A4.I'!E28+'3.NP-Interna'!E28+'4.NP-Rehabilitace'!E28","v":13},0,0,0,0]
[38,"Napájecí injektor 24 portů/19\"","POE - 24/19\"","ks",{"$f":"'1.NP - LDN A'!E29+'2.NP - LDN A'!E29+'1.NP-LDN B'!E29+'2.NP-LDN B'!E29+'1.NP-LDN-A-Revmatologie'!E29+'2.NP-LDN-A4.I'!E29+'3.NP-Interna'!E29+'4.NP-Rehabilitace'!E29","v":19},0,0,0,0]
[null,"POE SWI 24 portů","POE-SWI 24/19\"","ks",{"$f":"'1.NP - LDN A'!E30+'2.NP - LDN A'!E30+'1.NP-LDN B'!E30+'2.NP-LDN B'!E30+'1.NP-LDN-A-Revmatologie'!E30+'2.NP-LDN-A4.I'!E30+'3.NP-Interna'!E30+'4.NP-Rehabilitace'!E30","v":8},0,0,0,0]
[49,"Svítidlo signalizační LED","CL","ks",{"$f":"'1.NP - LDN A'!E31+'2.NP - LDN A'!E31+'1.NP-LDN B'!E31+'2.NP-LDN B'!E31+'1.NP-LDN-A-Revmatologie'!E31+'2.NP-LDN-A4.I'!E31+'3.NP-Interna'!E31+'4.NP-Rehabilitace'!E31","v":136},0,0,0,0]
[51,"Pokojový terminál ","RT-07 IP","ks",{"$f":"'1.NP - LDN A'!E32+'2.NP - LDN A'!E32+'1.NP-LDN B'!E32+'2.NP-LDN B'!E32+'1.NP-LDN-A-Revmatologie'!E32+'2.NP-LDN-A4.I'!E32+'3.NP-Interna'!E32+'4.NP-Rehabilitace'!E32","v":8},0,0,0,0]
[55,"Pokojový terminál hovorový s displejem\n(minimálně 4 programovatelná tlačítka, hovorové spojení s hlavním terminálem, příjem hovorového volání od lůžka klienta, displej s indentifikací místa volání, hlasová navigace - informace o volajícím, číslo pokoje/lůžka, centrální hlášení přenos hlasové informace - nucený poslech)","RT-07DV IP","ks",{"$f":"'1.NP - LDN A'!E33+'2.NP - LDN A'!E33+'1.NP-LDN B'!E33+'2.NP-LDN B'!E33+'1.NP-LDN-A-Revmatologie'!E33+'2.NP-LDN-A4.I'!E33+'3.NP-Interna'!E33+'4.NP-Rehabilitace'!E33","v":16},0,0,0,0]
[54,"Pokojový servisní terminál","ST-20 IP","ks",{"$f":"'1.NP - LDN A'!E34+'2.NP - LDN A'!E34+'1.NP-LDN B'!E34+'2.NP-LDN B'!E34+'1.NP-LDN-A-Revmatologie'!E34+'2.NP-LDN-A4.I'!E34+'3.NP-Interna'!E34+'4.NP-Rehabilitace'!E34","v":127},0,{"$f":"E34*F34","v":0},0,{"$f":"E34*H34","v":0}]
[null,"Přijímací bezdrátový modul centrální  \ndlouhý dosah           ","WRT-07 IP","ks",16,0,{"$f":"E35*F35","v":0},0,{"$f":"E35*H35","v":0}]
[70,"Zásuvka pacienta s držákem a reproduktorem\n(přenos hlasitého hovorového spojení sestra - klient, přenos hlasité reprodukce rádia a centrální hlašení vždy v případě, je - li koncový prvek zavěšen v držáku, či zavěšen na hrazdě postele klienta)","BC-07HS IP","ks",{"$f":"'1.NP - LDN A'!E36+'2.NP - LDN A'!E36+'1.NP-LDN B'!E36+'2.NP-LDN B'!E36+'1.NP-LDN-A-Revmatologie'!E36+'2.NP-LDN-A4.I'!E36+'3.NP-Interna'!E36+'4.NP-Rehabilitace'!E36","v":238},0,0,0,0]
[80,"Terminál pacienta s tlačítkem volání ošetřovatelky ","PT - 07S IP\nR01.0","ks",{"$f":"'1.NP - LDN A'!E37+'2.NP - LDN A'!E37+'1.NP-LDN B'!E37+'2.NP-LDN B'!E37+'1.NP-LDN-A-Revmatologie'!E37+'2.NP-LDN-A4.I'!E37+'3.NP-Interna'!E37+'4.NP-Rehabilitace'!E37","v":238},0,0,"x","x"]
[88,"Kabel vytrhávací - částečně kroucený","CAB-PT-DC","ks",{"$f":"'1.NP - LDN A'!E38+'2.NP - LDN A'!E38+'1.NP-LDN B'!E38+'2.NP-LDN B'!E38+'1.NP-LDN-A-Revmatologie'!E38+'2.NP-LDN-A4.I'!E38+'3.NP-Interna'!E38+'4.NP-Rehabilitace'!E38","v":238},0,0,"x","x"]
[107,"Držák kabelu na hrazdu","CH1","ks",{"$f":"'1.NP - LDN A'!E39+'2.NP - LDN A'!E39+'1.NP-LDN B'!E39+'2.NP-LDN B'!E39+'1.NP-LDN-A-Revmatologie'!E39+'2.NP-LDN-A4.I'!E39+'3.NP-Interna'!E39+'4.NP-Rehabilitace'!E39","v":238},0,0,"x","x"]
[103,"Bezdrátové přenosné tlačítko                                                   (hlídání baterie, IP65)","WB2","ks",{"$f":"'1.NP - LDN A'!E40+'2.NP - LDN A'!E40+'1.NP-LDN B'!E40+'2.NP-LDN B'!E40+'1.NP-LDN-A-Revmatologie'!E40+'2.NP-LDN-A4.I'!E40+'3.NP-Interna'!E40+'4.NP-Rehabilitace'!E40","v":16},0,0,"x","x"]
[105,"Bezdrátové přenosné tlačítko SOS                                          (hlídání baterie, IP65)","WB2-S","ks",{"$f":"'1.NP - LDN A'!E41+'2.NP - LDN A'!E41+'1.NP-LDN B'!E41+'2.NP-LDN B'!E41+'1.NP-LDN-A-Revmatologie'!E41+'2.NP-LDN-A4.I'!E41+'3.NP-Interna'!E41+'4.NP-Rehabilitace'!E41","v":24},0,0,"x","x"]
[null,"Tlačítko nouzového volání","EB-07N IP","ks",{"$f":"'1.NP - LDN A'!E42+'2.NP - LDN A'!E42+'1.NP-LDN B'!E42+'2.NP-LDN B'!E42+'1.NP-LDN-A-Revmatologie'!E42+'2.NP-LDN-A4.I'!E42+'3.NP-Interna'!E42+'4.NP-Rehabilitace'!E42","v":1},0,0,0,{"$f":"E42*H42","v":0}]
[null,"Táhlo nouzového volání","EC-07N IP","ks",{"$f":"'1.NP - LDN A'!E43+'2.NP - LDN A'!E43+'1.NP-LDN B'!E43+'2.NP-LDN B'!E43+'1.NP-LDN-A-Revmatologie'!E43+'2.NP-LDN-A4.I'!E43+'3.NP-Interna'!E43+'4.NP-Rehabilitace'!E43","v":68},0,0,0,{"$f":"E43*H43","v":0}]
[null,"Táhlo a tlačítko nouzového volání","EBC-07N IP","ks",{"$f":"'1.NP - LDN A'!E44+'2.NP - LDN A'!E44+'1.NP-LDN B'!E44+'2.NP-LDN B'!E44+'1.NP-LDN-A-Revmatologie'!E44+'2.NP-LDN-A4.I'!E44+'3.NP-Interna'!E44+'4.NP-Rehabilitace'!E44","v":63},0,0,0,0]
[null,"GSM interface (s příslušenstvím)","GSM-SMS IP","ks",{"$f":"'1.NP - LDN A'!E45+'2.NP - LDN A'!E45+'1.NP-LDN B'!E45+'2.NP-LDN B'!E45+'1.NP-LDN-A-Revmatologie'!E45+'2.NP-LDN-A4.I'!E45+'3.NP-Interna'!E45+'4.NP-Rehabilitace'!E45","v":1},0,0,0,0]
[119,"Router","RB-07 IP","ks",{"$f":"'1.NP - LDN A'!E46+'2.NP - LDN A'!E46+'1.NP-LDN B'!E46+'2.NP-LDN B'!E46+'1.NP-LDN-A-Revmatologie'!E46+'2.NP-LDN-A4.I'!E46+'3.NP-Interna'!E46+'4.NP-Rehabilitace'!E46","v":8},0,0,0,0]
[null,"SQL server (do 30-ti oddělení)","SQLS/1U","ks",{"$f":"'1.NP - LDN A'!E47+'2.NP - LDN A'!E47+'1.NP-LDN B'!E47+'2.NP-LDN B'!E47+'1.NP-LDN-A-Revmatologie'!E47+'2.NP-LDN-A4.I'!E47+'3.NP-Interna'!E47+'4.NP-Rehabilitace'!E47","v":1},0,{"$f":"E47*F47","v":0},0,0]
[null,"redukce plechová dvojitá","KZM-05","ks",{"$f":"'1.NP - LDN A'!E48+'2.NP - LDN A'!E48+'1.NP-LDN B'!E48+'2.NP-LDN B'!E48+'1.NP-LDN-A-Revmatologie'!E48+'2.NP-LDN-A4.I'!E48+'3.NP-Interna'!E48+'4.NP-Rehabilitace'!E48","v":379},0,0,0,0]
[null,"IP rádio server","IPRS","ks",{"$f":"'1.NP - LDN A'!E49+'2.NP - LDN A'!E49+'1.NP-LDN B'!E49+'2.NP-LDN B'!E49+'1.NP-LDN-A-Revmatologie'!E49+'2.NP-LDN-A4.I'!E49+'3.NP-Interna'!E49+'4.NP-Rehabilitace'!E49","v":1},0,{"$f":"E49*F49","v":0},0,0]
[150,"Patch kabel","Patch 0,3m","ks",{"$f":"'1.NP - LDN A'!E50+'2.NP - LDN A'!E50+'1.NP-LDN B'!E50+'2.NP-LDN B'!E50+'1.NP-LDN-A-Revmatologie'!E50+'2.NP-LDN-A4.I'!E50+'3.NP-Interna'!E50+'4.NP-Rehabilitace'!E50","v":445},0,{"$f":"F50*E50","v":0},0,0]
[null,"Konektor RJ45 UTP CAT5e včetně ochrany a proměření","UTP CAT5E drát","ks",{"$f":"'1.NP - LDN A'!E51+'2.NP - LDN A'!E51+'1.NP-LDN B'!E51+'2.NP-LDN B'!E51+'1.NP-LDN-A-Revmatologie'!E51+'2.NP-LDN-A4.I'!E51+'3.NP-Interna'!E51+'4.NP-Rehabilitace'!E51","v":890},0,{"$f":"F51*E51","v":0},0,0]
[null,"Instalace a konfigurace systému",null,"ks",{"$f":"'1.NP - LDN A'!E52+'2.NP - LDN A'!E52+'1.NP-LDN B'!E52+'2.NP-LDN B'!E52+'1.NP-LDN-A-Revmatologie'!E52+'2.NP-LDN-A4.I'!E52+'3.NP-Interna'!E52+'4.NP-Rehabilitace'!E52","v":8},0,{"$f":"F52*E52","v":0},0,0]
[null,"Kontrolní provoz, zaškolení, vedlejší výdaje",null,"ks",{"$f":"'1.NP - LDN A'!E53+'2.NP - LDN A'!E53+'1.NP-LDN B'!E53+'2.NP-LDN B'!E53+'1.NP-LDN-A-Revmatologie'!E53+'2.NP-LDN-A4.I'!E53+'3.NP-Interna'!E53+'4.NP-Rehabilitace'!E53","v":8},0,0,0,0]
[null,"Výchozí revize dorozumívacího zařízení",null,"ks",{"$f":"'1.NP - LDN A'!E54+'2.NP - LDN A'!E54+'1.NP-LDN B'!E54+'2.NP-LDN B'!E54+'1.NP-LDN-A-Revmatologie'!E54+'2.NP-LDN-A4.I'!E54+'3.NP-Interna'!E54+'4.NP-Rehabilitace'!E54","v":8},0,0,0,0]
[null,"Práce za provozu (provoz investora)",null,"kpl",{"$f":"'1.NP - LDN A'!E55+'2.NP - LDN A'!E55+'1.NP-LDN B'!E55+'2.NP-LDN B'!E55+'1.NP-LDN-A-Revmatologie'!E55+'2.NP-LDN-A4.I'!E55+'3.NP-Interna'!E55+'4.NP-Rehabilitace'!E55","v":8},0,0,0,0]
[null,"Ekologická likvidace odpadu",null,"ks",{"$f":"'1.NP - LDN A'!E56+'2.NP - LDN A'!E56+'1.NP-LDN B'!E56+'2.NP-LDN B'!E56+'1.NP-LDN-A-Revmatologie'!E56+'2.NP-LDN-A4.I'!E56+'3.NP-Interna'!E56+'4.NP-Rehabilitace'!E56","v":8},0,0,0,0]
[null,"Testování určení přibližné polohy ,,zóny\" pacienta/klienta",null,"hod",{"$f":"'1.NP - LDN A'!E57+'2.NP - LDN A'!E57+'1.NP-LDN B'!E57+'2.NP-LDN B'!E57+'1.NP-LDN-A-Revmatologie'!E57+'2.NP-LDN-A4.I'!E57+'3.NP-Interna'!E57+'4.NP-Rehabilitace'!E57","v":80},0,0,0,0]
[null,"Doprava",null,"km",{"$f":"'1.NP - LDN A'!E58+'2.NP - LDN A'!E58+'1.NP-LDN B'!E58+'2.NP-LDN B'!E58+'1.NP-LDN-A-Revmatologie'!E58+'2.NP-LDN-A4.I'!E58+'3.NP-Interna'!E58+'4.NP-Rehabilitace'!E58","v":3960},0,0,0,0]
[null,"Součty:",null,null,null,null,{"$f":"SUM(G7:G58)","v":0},null,{"$f":"SUM(I7:I58)","v":0}]
[]
[null,"Rekapitulace:"]
[null,"Dodávky a montáže celkem - cena bez DPH:",null,null,null,null,null,null,{"$f":"G59+I59","v":0},{"$f":"'1.NP - LDN A'!I62+'2.NP - LDN A'!I62+'1.NP-LDN B'!I62+'2.NP-LDN B'!I62+'1.NP-LDN-A-Revmatologie'!I62+'2.NP-LDN-A4.I'!I62+'3.NP-Interna'!I62+'4.NP-Rehabilitace'!I62","v":0}]
[null,"Ceny jsou uvedeny v cenové relaci roku 2024 v Kč.  "]
[]
[null,null,null,null,null,null,null,null,null,{"$f":"I62-J62","v":0}]

{"sheet":"1.NP - LDN A","index":2,"n_rows":63,"n_cols":9,"rows_kept":63,"cut":false,"hidden":false,"merged":[[66,1,66,8],[0,1,0,8],[1,1,1,8],[2,1,2,8],[3,2,4,2],[3,3,4,3],[3,4,4,4],[61,1,61,7],[3,1,4,1],[3,5,3,6],[3,7,3,8],[63,1,63,8],[62,1,62,8]]}
[null,"Výkaz výměr  \"Nemocnice Nový Bydžov - Kompletní výměna dorozumívacích zařízení sestra - pacient\""]
[null,"Objekt: Nemocnice Nový Bydžov - Budova LDN - A _půdorys 1.NP_výkres č.1"]
[]
[null,"Název","Označení","MJ","Množství","materiál",null,"montáž"]
[null,null,null,null,null,"cena/ks","celkem","cena/ks","celkem"]
[null,"Dodávka a montáž technologie "]
[1,"Hlavní terminál, vč. adaptéru a kabelu k terminálu 2m (Touch screen monitor min. 10,4\", hlasitá a diskrétní komunikace, identifikace volajícího včetně jména klienta, možnost zobrazení informací z EPS, poslech radiových stanic na hlavním terminálu, volba IP radiostanic přímo na hlavním terminálu v uživatelském menu. Možnost integrace s bezdrátovým systémem a zobrazení bezdrátových bezpečnostních tlačítek s funkcí hlídání průchodu klientů zakázanou zónou, ve spojení s IP kamerou zobrazení online přenosu od vchodu na oddělení)","MT - 07 IP","ks",1,0,{"$f":"E7*F7","v":0},"x","x"]
[null,"Zásuvka terminálu","CMT-07 IP","ks",1,0,0,0,{"$f":"E8*H8","v":0}]
[6,"Datový rozvaděč nástěnný 19\"/15U - nástěnný\n600 x 770 x 395 mm, 22,2 kg","RA-07/15U","ks",1,0,0,0,{"$f":"E9*H9","v":0}]
[11,"Napájecí zdroj + lokální server ","PS-07 IP","ks",1,0,0,0,{"$f":"E10*H10","v":0}]
[12,"Rozvodný panel 8x 230V 19\"/2U","PDP 19\"/2U","ks",1,0,0,0,{"$f":"E11*H11","v":0}]
[13,"Záložní zdroj 230V, 1200VA","UPS1200VA","ks",1,0,0,0,{"$f":"E12*H12","v":0}]
[null,"SW - licence pro Hlavní terminál","SW - MT","ks",1,0,0,"x","x"]
[15,"SW - licence provozu účastníka","SW - L1","ks",22,0,0,"x","x"]
[16,"SW - databáze historie volání","SW - HC","ks",1,0,0,"x","x"]
[17,"SW - aktivace sdruženého provozu","SW - AW","ks",1,0,0,"x","x"]
[18,"SW - prohlížeč historie","SW - SQLHV","ks",1,0,0,"x","x"]
[null,"SW - bezdrátový modul","SW-WR","ks",2,0,0,"x","x"]
[25,"Univerzální police 19\"/1U","US 19\"/1U","ks",1,0,0,0,{"$f":"E19*H19","v":0}]
[null,"24\" LCD panel jednostranný na zeď s příslušenstvím","LCD-OW","ks",1,0,0,0,{"$f":"E20*H20","v":0}]
[28,"Telefonní zásuvka IN-OUT","TC","ks",1,0,0,0,{"$f":"E21*H21","v":0}]
[null,"Audio zásuvka","AC","ks",1,0,0,0,{"$f":"E22*H22","v":0}]
[29,"DECT Phone - (bezdrátový telefon DECT - analogová linka)","DECT PHONE","ks",1,0,0,0,{"$f":"E23*H23","v":0}]
[24,"Kabel telefonní přípojky","CTC","ks",1,0,0,"x","x"]
[124,"Repeater","Repeater","ks",1,0,0,0,{"$f":"E25*H25","v":0}]
[31,"Telefonní interface (pro analog. přístr.)","TI - 07 IP","ks",1,0,0,0,0]
[30,"Analog/VoIP brána","AG-07 IP","ks",1,0,0,0,0]
[34,"Datový switch 24 portů/19\" (CZ)","SWI - 24/19\"","ks",1,0,0,0,0]
[38,"Napájecí injektor 24 portů/19\"","POE - 24/19\"","ks",2,0,0,0,0]
[null,"POE SWI 24 portů","POE-SWI 24/19\"","ks",1,0,0,0,0]
[49,"Svítidlo signalizační LED","CL","ks",14,0,0,0,0]
[51,"Pokojový terminál ","RT-07 IP","ks",1,0,0,0,0]
[55,"Pokojový terminál hovorový s displejem\n(minimálně 4 programovatelná tlačítka, hovorové spojení s hlavním terminálem, příjem hovorového volání od lůžka klienta, displej s indentifikací místa volání, hlasová navigace - informace o volajícím, číslo pokoje/lůžka, centrální hlášení přenos hlasové informace - nucený poslech)","RT-07DV IP","ks",2,0,0,0,0]
[54,"Pokojový servisní terminál","ST-20 IP","ks",13,0,{"$f":"E34*F34","v":0},0,{"$f":"E34*H34","v":0}]
[null,"Přijímací bezdrátový modul centrální  \ndlouhý dosah           ","WRT-07 IP",null,2,0,{"$f":"E35*F35","v":0},0,{"$f":"E35*H35","v":0}]
[70,"Zásuvka pacienta s držákem a reproduktorem\n(přenos hlasitého hovorového spojení sestra - klient, přenos hlasité reprodukce rádia a centrální hlašení vždy v případě, je - li koncový prvek zavěšen v držáku, či zavěšen na hrazdě postele klienta)","BC-07HS IP","ks",22,0,0,0,0]
[80,"Terminál pacienta s tlačítkem volání ošetřovatelky ","PT - 07S IP\nR01.0","ks",22,0,0,"x","x"]
[88,"Kabel vytrhávací - částečně kroucený","CAB-PT-DC","ks",22,0,0,"x","x"]
[107,"Držák kabelu na hrazdu","CH1","ks",22,0,0,"x","x"]
[103,"Bezdrátové přenosné tlačítko                                                   (hlídání baterie, IP65)","WB2","ks",2,0,0,"x","x"]
[105,"Bezdrátové přenosné tlačítko SOS                                          (hlídání baterie, IP65)","WB2-S","ks",3,0,0,"x","x"]
[null,"Tlačítko nouzového volání","EB-07N IP","ks",0,0,0,0,{"$f":"E42*H42","v":0}]
[null,"Táhlo nouzového volání","EC-07N IP","ks",5,0,0,0,0]
[null,"Táhlo a tlačítko nouzového volání","EBC-07N IP","ks",8,0,0,0,0]
[null,"GSM interface (s příslušenstvím)","GSM-SMS IP","ks",1,0,0,0,0]
[119,"Router","RB-07 IP","ks",1,0,0,0,0]
[null,"SQL server (do 30-ti oddělení)","SQLS/1U","ks",0,0,{"$f":"E47*F47","v":0},0,0]
[null,"redukce plechová dvojitá","KZM-05","ks",35,0,0,0,0]
[null,"IP rádio server","IPRS","ks",0,0,{"$f":"E49*F49","v":0},0,0]
[150,"Patch kabel","Patch 0,3m","ks",40,0,{"$f":"F50*E50","v":0},0,0]
[null,"Konektor RJ45 UTP CAT5e včetně ochrany a proměření","UTP CAT5E drát","ks",80,0,{"$f":"F51*E51","v":0},0,0]
[null,"Instalace a konfigurace systému",null,"ks",1,0,{"$f":"F52*E52","v":0},0,0]
[null,"Kontrolní provoz, zaškolení, vedlejší výdaje",null,"ks",1,0,0,0,0]
[null,"Výchozí revize dorozumívacího zařízení",null,"ks",1,0,0,0,0]
[null,"Práce za provozu (provoz investora)",null,"kpl",1,0,0,0,0]
[null,"Ekologická likvidace odpadu",null,"ks",1,0,0,0,0]
[null,"Testování určení přibližné polohy ,,zóny\" pacienta/klienta",null,"hod",10,0,0,0,0]
[null,"Doprava",null,"km",495,0,0,0,0]
[null,"Součty:",null,null,null,null,{"$f":"SUM(G7:G58)","v":0},null,{"$f":"SUM(I7:I58)","v":0}]
[]
[null,"Rekapitulace:"]
[null,"Dodávky a montáže celkem - cena bez DPH:",null,null,null,null,null,null,{"$f":"G59+I59","v":0}]
[null,"Ceny jsou uvedeny v cenové relaci roku 2024 v Kč.  "]

{"sheet":"2.NP - LDN A","index":3,"n_rows":63,"n_cols":9,"rows_kept":63,"cut":false,"hidden":false,"merged":[[66,1,66,8],[0,1,0,8],[1,1,1,8],[2,1,2,8],[3,1,4,1],[3,2,4,2],[3,3,4,3],[3,4,4,4],[3,5,3,6],[3,7,3,8],[61,1,61,7],[62,1,62,8],[63,1,63,8],[65,7,65,8]]}
[null,"Výkaz výměr  \"Nemocnice Nový Bydžov - Kompletní výměna dorozumívacích zařízení sestra - pacient\""]
[null,"Objekt: Nemocnice Nový Bydžov - Budova LDN - A_půdorys 2.NP_výkres č.2"]
[]
[null,"Název","Označení","MJ","Množství","materiál",null,"montáž"]
[null,null,null,null,null,"cena/ks","celkem","cena/ks","celkem"]
[null,"Dodávka a montáž technologie "]
[1,"Hlavní terminál, vč. adaptéru a kabelu k terminálu 2m (Touch screen monitor min. 10,4\", hlasitá a diskrétní komunikace, identifikace volajícího včetně jména klienta, možnost zobrazení informací z EPS, poslech radiových stanic na hlavním terminálu, volba IP radiostanic přímo na hlavním terminálu v uživatelském menu. Možnost integrace s bezdrátovým systémem a zobrazení bezdrátových bezpečnostních tlačítek s funkcí hlídání průchodu klientů zakázanou zónou, ve spojení s IP kamerou zobrazení online přenosu od vchodu na oddělení)","MT - 07 IP","ks",1,0,{"$f":"E7*F7","v":0},"x","x"]
[null,"Zásuvka terminálu","CMT-07 IP","ks",1,0,0,0,{"$f":"E8*H8","v":0}]
[6,"Datový rozvaděč nástěnný 19\"/15U - nástěnný\n600 x 770 x 395 mm, 22,2 kg","RA-07/15U","ks",1,0,0,0,{"$f":"E9*H9","v":0}]
[11,"Napájecí zdroj + lokální server ","PS-07 IP","ks",1,0,0,0,{"$f":"E10*H10","v":0}]
[12,"Rozvodný panel 8x 230V 19\"/2U","PDP 19\"/2U","ks",1,0,0,0,{"$f":"E11*H11","v":0}]
[13,"Záložní zdroj 230V, 1200VA","UPS1200VA","ks",1,0,0,0,{"$f":"E12*H12","v":0}]
[null,"SW - licence pro Hlavní terminál","SW - MT","ks",1,0,0,"x","x"]
[15,"SW - licence provozu účastníka","SW - L1","ks",45,0,0,"x","x"]
[16,"SW - databáze historie volání","SW - HC","ks",1,0,0,"x","x"]
[17,"SW - aktivace sdruženého provozu","SW - AW","ks",1,0,0,"x","x"]
[18,"SW - prohlížeč historie","SW - SQLHV","ks",1,0,0,"x","x"]
[20,"SW - bezdrátový modul","SW-WR","ks",2,0,0,"x","x"]
[25,"Univerzální police 19\"/1U","US 19\"/1U","ks",1,0,0,0,{"$f":"E19*H19","v":0}]
[null,"24\" LCD panel jednostranný na zeď s příslušenstvím","LCD-OW","ks",0,0,0,0,{"$f":"E20*H20","v":0}]
[28,"Telefonní zásuvka IN-OUT","TC","ks",1,0,0,0,{"$f":"E21*H21","v":0}]
[null,"Audio zásuvka","AC","ks",1,0,0,0,{"$f":"E22*H22","v":0}]
[29,"DECT Phone - (bezdrátový telefon DECT - analogová linka)","DECT PHONE","ks",1,0,0,0,{"$f":"E23*H23","v":0}]
[24,"Kabel telefonní přípojky","CTC","ks",1,0,0,"x","x"]
[124,"Repeater","Repeater","ks",1,0,0,0,{"$f":"E25*H25","v":0}]
[31,"Telefonní interface (pro analog. přístr.)","TI - 07 IP","ks",1,0,0,0,0]
[null,"Analog/VoIP brána","AG-07 IP","ks",1,0,0,0,0]
[34,"Datový switch 24 portů/19\" (CZ)","SWI - 24/19\"","ks",3,0,0,0,0]
[38,"Napájecí injektor 24 portů/19\"","POE - 24/19\"","ks",4,0,0,0,0]
[null,"POE SWI 24 portů","POE-SWI 24/19\"","ks",1,0,0,0,0]
[49,"Svítidlo signalizační LED","CL","ks",21,0,0,0,0]
[51,"Pokojový terminál ","RT-07 IP","ks",1,0,0,0,0]
[55,"Pokojový terminál hovorový s displejem\n(minimálně 4 programovatelná tlačítka, hovorové spojení s hlavním terminálem, příjem hovorového volání od lůžka klienta, displej s indentifikací místa volání, hlasová navigace - informace o volajícím, číslo pokoje/lůžka, centrální hlášení přenos hlasové informace - nucený poslech)","RT-07DV IP","ks",2,0,0,0,0]
[54,"Pokojový servisní terminál","ST-20 IP","ks",20,0,{"$f":"E34*F34","v":0},0,{"$f":"E34*H34","v":0}]
[null,"Přijímací bezdrátový modul centrální  \ndlouhý dosah           ","WRT-07 IP",null,2,0,{"$f":"E35*F35","v":0},0,{"$f":"E35*H35","v":0}]
[70,"Zásuvka pacienta s držákem a reproduktorem\n(přenos hlasitého hovorového spojení sestra - klient, přenos hlasité reprodukce rádia a centrální hlašení vždy v případě, je - li koncový prvek zavěšen v držáku, či zavěšen na hrazdě postele klienta)","BC-07HS IP","ks",45,0,0,0,0]
[80,"Terminál pacienta s tlačítkem volání ošetřovatelky ","PT - 07S IP\nR01.0","ks",45,0,0,"x","x"]
[88,"Kabel vytrhávací - částečně kroucený","CAB-PT-DC","ks",45,0,0,"x","x"]
[107,"Držák kabelu na hrazdu","CH1","ks",45,0,0,"x","x"]
[103,"Bezdrátové přenosné tlačítko                                                   (hlídání baterie, IP65)","WB2","ks",2,0,0,"x","x"]
[105,"Bezdrátové přenosné tlačítko SOS                                          (hlídání baterie, IP65)","WB2-S","ks",3,0,0,"x","x"]
[null,"Tlačítko nouzového volání","EB-07N IP","ks",0,0,0,0,{"$f":"E42*H42","v":0}]
[null,"Táhlo nouzového volání","EC-07N IP","ks",11,0,0,0,0]
[null,"Táhlo a tlačítko nouzového volání","EBC-07N IP","ks",10,0,0,0,0]
[null,"GSM interface (s příslušenstvím)","GSM-SMS IP","ks",0,0,0,0,0]
[119,"Router","RB-07 IP","ks",1,0,0,0,0]
[null,"SQL server (do 30-ti oddělení)","SQLS/1U","ks",0,0,{"$f":"E47*F47","v":0},0,0]
[null,"redukce plechová dvojitá","KZM-05","ks",67,0,0,0,0]
[null,"IP rádio server","IPRS","ks",0,0,{"$f":"E49*F49","v":0},0,0]
[150,"Patch kabel","Patch 0,3m","ks",80,0,{"$f":"F50*E50","v":0},0,0]
[null,"Konektor RJ45 UTP CAT5e včetně ochrany a proměření","UTP CAT5E drát","ks",160,0,{"$f":"F51*E51","v":0},0,0]
[null,"Instalace a konfigurace systému",null,"ks",1,0,{"$f":"F52*E52","v":0},0,0]
[null,"Kontrolní provoz, zaškolení, vedlejší výdaje",null,"ks",1,0,0,0,0]
[null,"Výchozí revize dorozumívacího zařízení",null,"ks",1,0,0,0,0]
[null,"Práce za provozu (provoz investora)",null,"kpl",1,0,0,0,0]
[null,"Ekologická likvidace odpadu",null,"ks",1,0,0,0,0]
[null,"Testování určení přibližné polohy ,,zóny\" pacienta/klienta",null,"hod",10,0,0,0,0]
[null,"Doprava",null,"km",495,0,0,0,0]
[null,"Součty:",null,null,null,null,{"$f":"SUM(G7:G58)","v":0},null,{"$f":"SUM(I7:I58)","v":0}]
[]
[null,"Rekapitulace:"]
[null,"Dodávky a montáže celkem - cena bez DPH:",null,null,null,null,null,null,{"$f":"I59+G59","v":0}]
[null,"Ceny jsou uvedeny v cenové relaci roku 2024 v Kč.  "]

{"sheet":"1.NP-LDN B","index":4,"n_rows":63,"n_cols":9,"rows_kept":63,"cut":false,"hidden":false,"merged":[[61,1,61,7],[62,1,62,8],[63,1,63,8],[65,7,65,8],[0,1,0,8],[1,1,1,8],[2,1,2,8],[3,1,4,1],[3,2,4,2],[3,3,4,3],[3,4,4,4],[3,5,3,6],[3,7,3,8]]}
[null,"Výkaz výměr  \"Nemocnice Nový Bydžov - Kompletní výměna dorozumívacích zařízení sestra - pacient\""]
[null,"Objekt: Nemocnice Nový Bydžov - Budova LDN - B_půdorys 1.NP_výkres č.3"]
[]
[null,"Název","Označení","MJ","Množství","materiál",null,"montáž"]
[null,null,null,null,null,"cena/ks","celkem","cena/ks","celkem"]
[null,"Dodávka a montáž technologie "]
[1,"Hlavní terminál, vč. adaptéru a kabelu k terminálu 2m (Touch screen monitor min. 10,4\", hlasitá a diskrétní komunikace, identifikace volajícího včetně jména klienta, možnost zobrazení informací z EPS, poslech radiových stanic na hlavním terminálu, volba IP radiostanic přímo na hlavním terminálu v uživatelském menu. Možnost integrace s bezdrátovým systémem a zobrazení bezdrátových bezpečnostních tlačítek s funkcí hlídání průchodu klientů zakázanou zónou, ve spojení s IP kamerou zobrazení online přenosu od vchodu na oddělení)","MT - 07 IP","ks",1,0,{"$f":"E7*F7","v":0},"x","x"]
[null,"Zásuvka terminálu","CMT-07 IP","ks",1,0,0,0,{"$f":"E8*H8","v":0}]
[6,"Datový rozvaděč nástěnný 19\"/15U - nástěnný\n600 x 770 x 395 mm, 22,2 kg","RA-07/15U","ks",1,0,0,0,{"$f":"E9*H9","v":0}]
[11,"Napájecí zdroj + lokální server ","PS-07 IP","ks",1,0,0,0,{"$f":"E10*H10","v":0}]
[12,"Rozvodný panel 8x 230V 19\"/2U","PDP 19\"/2U","ks",1,0,0,0,{"$f":"E11*H11","v":0}]
[13,"Záložní zdroj 230V, 1200VA","UPS1200VA","ks",1,0,0,0,{"$f":"E12*H12","v":0}]
[null,"SW - licence pro Hlavní terminál","SW - MT","ks",1,0,0,"x","x"]
[15,"SW - licence provozu účastníka","SW - L1","ks",19,0,0,"x","x"]
[16,"SW - databáze historie volání","SW - HC","ks",1,0,0,"x","x"]
[17,"SW - aktivace sdruženého provozu","SW - AW","ks",1,0,0,"x","x"]
[18,"SW - prohlížeč historie","SW - SQLHV","ks",1,0,0,"x","x"]
[20,"SW - bezdrátový modul","SW-WR","ks",2,0,0,"x","x"]
[25,"Univerzální police 19\"/1U","US 19\"/1U","ks",1,0,0,0,{"$f":"E19*H19","v":0}]
[null,"24\" LCD panel jednostranný na zeď s příslušenstvím","LCD-OW","ks",0,0,0,0,{"$f":"E20*H20","v":0}]
[28,"Telefonní zásuvka IN-OUT","TC","ks",1,0,0,0,{"$f":"E21*H21","v":0}]
[null,"Audio zásuvka","AC","ks",1,0,0,0,{"$f":"E22*H22","v":0}]
[29,"DECT Phone - (bezdrátový telefon DECT - analogová linka)","DECT PHONE","ks",1,0,0,0,{"$f":"E23*H23","v":0}]
[24,"Kabel telefonní přípojky","CTC","ks",1,0,0,"x","x"]
[124,"Repeater","Repeater","ks",1,0,0,0,{"$f":"E25*H25","v":0}]
[31,"Telefonní interface (pro analog. přístr.)","TI - 07 IP","ks",1,0,0,0,0]
[null,"Analog/VoIP brána","AG-07 IP","ks",1,0,0,0,0]
[34,"Datový switch 24 portů/19\" (CZ)","SWI - 24/19\"","ks",1,0,0,0,0]
[38,"Napájecí injektor 24 portů/19\"","POE - 24/19\"","ks",2,0,0,0,0]
[null,"POE SWI 24 portů","POE-SWI 24/19\"","ks",1,0,0,0,0]
[49,"Svítidlo signalizační LED","CL","ks",14,0,0,0,0]
[51,"Pokojový terminál ","RT-07 IP","ks",1,0,0,0,0]
[55,"Pokojový terminál hovorový s displejem\n(minimálně 4 programovatelná tlačítka, hovorové spojení s hlavním terminálem, příjem hovorového volání od lůžka klienta, displej s indentifikací místa volání, hlasová navigace - informace o volajícím, číslo pokoje/lůžka, centrální hlášení přenos hlasové informace - nucený poslech)","RT-07DV IP","ks",2,0,0,0,0]
[54,"Pokojový servisní terminál","ST-20 IP","ks",13,0,{"$f":"E34*F34","v":0},0,{"$f":"E34*H34","v":0}]
[null,"Přijímací bezdrátový modul centrální  \ndlouhý dosah           ","WRT-07 IP",null,2,0,{"$f":"E35*F35","v":0},0,{"$f":"E35*H35","v":0}]
[70,"Zásuvka pacienta s držákem a reproduktorem\n(přenos hlasitého hovorového spojení sestra - klient, přenos hlasité reprodukce rádia a centrální hlašení vždy v případě, je - li koncový prvek zavěšen v držáku, či zavěšen na hrazdě postele klienta)","BC-07HS IP","ks",19,0,0,0,0]
[80,"Terminál pacienta s tlačítkem volání ošetřovatelky ","PT - 07S IP\nR01.0","ks",19,0,0,"x","x"]
[88,"Kabel vytrhávací - částečně kroucený","CAB-PT-DC","ks",19,0,0,"x","x"]
[107,"Držák kabelu na hrazdu","CH1","ks",19,0,0,"x","x"]
[103,"Bezdrátové přenosné tlačítko                                                   (hlídání baterie, IP65)","WB2","ks",2,0,0,"x","x"]
[105,"Bezdrátové přenosné tlačítko SOS                                          (hlídání baterie, IP65)","WB2-S","ks",3,0,0,"x","x"]
[null,"Tlačítko nouzového volání","EB-07N IP","ks",0,0,0,0,{"$f":"E42*H42","v":0}]
[null,"Táhlo nouzového volání","EC-07N IP","ks",7,0,0,0,0]
[null,"Táhlo a tlačítko nouzového volání","EBC-07N IP","ks",8,0,0,0,0]
[null,"GSM interface (s příslušenstvím)","GSM-SMS IP","ks",0,0,0,0,0]
[119,"Router","RB-07 IP","ks",1,0,0,0,0]
[null,"SQL server (do 30-ti oddělení)","SQLS/1U","ks",0,0,{"$f":"E47*F47","v":0},0,0]
[null,"redukce plechová dvojitá","KZM-05","ks",34,0,0,0,0]
[null,"IP rádio server","IPRS","ks",0,0,{"$f":"E49*F49","v":0},0,0]
[150,"Patch kabel","Patch 0,3m","ks",40,0,{"$f":"F50*E50","v":0},0,0]
[null,"Konektor RJ45 UTP CAT5e včetně ochrany a proměření","UTP CAT5E drát","ks",80,0,{"$f":"F51*E51","v":0},0,0]
[null,"Instalace a konfigurace systému",null,"ks",1,0,{"$f":"F52*E52","v":0},0,0]
[null,"Kontrolní provoz, zaškolení, vedlejší výdaje",null,"ks",1,0,0,0,0]
[null,"Výchozí revize dorozumívacího zařízení",null,"ks",1,0,0,0,0]
[null,"Práce za provozu (provoz investora)",null,"kpl",1,0,0,0,0]
[null,"Ekologická likvidace odpadu",null,"ks",1,0,0,0,0]
[null,"Testování určení přibližné polohy ,,zóny\" pacienta/klienta",null,"hod",10,0,0,0,0]
[null,"Doprava",null,"km",495,0,0,0,0]
[null,"Součty:",null,null,null,null,{"$f":"SUM(G7:G58)","v":0},null,{"$f":"SUM(I7:I58)","v":0}]
[]
[null,"Rekapitulace:"]
[null,"Dodávky a montáže celkem - cena bez DPH:",null,null,null,null,null,null,{"$f":"G59+I59","v":0}]
[null,"Ceny jsou uvedeny v cenové relaci roku 2024 v Kč.  "]

{"sheet":"2.NP-LDN B","index":5,"n_rows":63,"n_cols":9,"rows_kept":63,"cut":false,"hidden":false,"merged":[[66,1,66,8],[0,1,0,8],[1,1,1,8],[2,1,2,8],[3,1,4,1],[3,2,4,2],[3,3,4,3],[3,4,4,4],[3,5,3,6],[3,7,3,8],[61,1,61,7],[62,1,62,8],[63,1,63,8],[65,7,65,8]]}
[null,"Výkaz výměr  \"Nemocnice Nový Bydžov - Kompletní výměna dorozumívacích zařízení sestra - pacient\""]
[null,"Objekt: Nemocnice Nový Bydžov - Budova LDN - B_půdorys 2.NP_výkres č.4"]
[]
[null,"Název","Označení","MJ","Množství","materiál",null,"montáž"]
[null,null,null,null,null,"cena/ks","celkem","cena/ks","celkem"]
[null,"Dodávka a montáž technologie "]
[1,"Hlavní terminál, vč. adaptéru a kabelu k terminálu 2m (Touch screen monitor min. 10,4\", hlasitá a diskrétní komunikace, identifikace volajícího včetně jména klienta, možnost zobrazení informací z EPS, poslech radiových stanic na hlavním terminálu, volba IP radiostanic přímo na hlavním terminálu v uživatelském menu. Možnost integrace s bezdrátovým systémem a zobrazení bezdrátových bezpečnostních tlačítek s funkcí hlídání průchodu klientů zakázanou zónou, ve spojení s IP kamerou zobrazení online přenosu od vchodu na oddělení)","MT - 07 IP","ks",1,0,{"$f":"E7*F7","v":0},"x","x"]
[null,"Zásuvka terminálu","CMT-07 IP","ks",1,0,0,0,{"$f":"E8*H8","v":0}]
[6,"Datový rozvaděč nástěnný 19\"/15U - nástěnný\n600 x 770 x 395 mm, 22,2 kg","RA-07/15U","ks",1,0,0,0,{"$f":"E9*H9","v":0}]
[11,"Napájecí zdroj + lokální server ","PS-07 IP","ks",1,0,0,0,{"$f":"E10*H10","v":0}]
[12,"Rozvodný panel 8x 230V 19\"/2U","PDP 19\"/2U","ks",1,0,0,0,{"$f":"E11*H11","v":0}]
[13,"Záložní zdroj 230V, 1200VA","UPS1200VA","ks",1,0,0,0,{"$f":"E12*H12","v":0}]
[null,"SW - licence pro Hlavní terminál","SW - MT","ks",1,0,0,"x","x"]
[15,"SW - licence provozu účastníka","SW - L1","ks",36,0,0,"x","x"]
[16,"SW - databáze historie volání","SW - HC","ks",1,0,0,"x","x"]
[17,"SW - aktivace sdruženého provozu","SW - AW","ks",1,0,0,"x","x"]
[18,"SW - prohlížeč historie","SW - SQLHV","ks",1,0,0,"x","x"]
[20,"SW - bezdrátový modul","SW-WR","ks",2,0,0,"x","x"]
[25,"Univerzální police 19\"/1U","US 19\"/1U","ks",1,0,0,0,{"$f":"E19*H19","v":0}]
[null,"24\" LCD panel jednostranný na zeď s příslušenstvím","LCD-OW","ks",0,0,0,0,{"$f":"E20*H20","v":0}]
[28,"Telefonní zásuvka IN-OUT","TC","ks",1,0,0,0,{"$f":"E21*H21","v":0}]
[null,"Audio zásuvka","AC","ks",1,0,0,0,{"$f":"E22*H22","v":0}]
[29,"DECT Phone - (bezdrátový telefon DECT - analogová linka)","DECT PHONE","ks",1,0,0,0,{"$f":"E23*H23","v":0}]
[24,"Kabel telefonní přípojky","CTC","ks",1,0,0,"x","x"]
[124,"Repeater","Repeater","ks",1,0,0,0,{"$f":"E25*H25","v":0}]
[31,"Telefonní interface (pro analog. přístr.)","TI - 07 IP","ks",1,0,0,0,0]
[null,"Analog/VoIP brána","AG-07 IP","ks",1,0,0,0,0]
[34,"Datový switch 24 portů/19\" (CZ)","SWI - 24/19\"","ks",2,0,0,0,0]
[38,"Napájecí injektor 24 portů/19\"","POE - 24/19\"","ks",3,0,0,0,0]
[null,"POE SWI 24 portů","POE-SWI 24/19\"","ks",1,0,0,0,0]
[49,"Svítidlo signalizační LED","CL","ks",19,0,0,0,0]
[51,"Pokojový terminál ","RT-07 IP","ks",1,0,0,0,0]
[55,"Pokojový terminál hovorový s displejem\n(minimálně 4 programovatelná tlačítka, hovorové spojení s hlavním terminálem, příjem hovorového volání od lůžka klienta, displej s indentifikací místa volání, hlasová navigace - informace o volajícím, číslo pokoje/lůžka, centrální hlášení přenos hlasové informace - nucený poslech)","RT-07DV IP","ks",3,0,0,0,0]
[54,"Pokojový servisní terminál","ST-20 IP","ks",19,0,{"$f":"E34*F34","v":0},0,{"$f":"E34*H34","v":0}]
[null,"Přijímací bezdrátový modul centrální  \ndlouhý dosah           ","WRT-07 IP",null,2,0,{"$f":"E35*F35","v":0},0,{"$f":"E35*H35","v":0}]
[70,"Zásuvka pacienta s držákem a reproduktorem\n(přenos hlasitého hovorového spojení sestra - klient, přenos hlasité reprodukce rádia a centrální hlašení vždy v případě, je - li koncový prvek zavěšen v držáku, či zavěšen na hrazdě postele klienta)","BC-07HS IP","ks",36,0,0,0,0]
[80,"Terminál pacienta s tlačítkem volání ošetřovatelky ","PT - 07S IP\nR01.0","ks",36,0,0,"x","x"]
[88,"Kabel vytrhávací - částečně kroucený","CAB-PT-DC","ks",36,0,0,"x","x"]
[107,"Držák kabelu na hrazdu","CH1","ks",36,0,0,"x","x"]
[103,"Bezdrátové přenosné tlačítko                                                   (hlídání baterie, IP65)","WB2","ks",2,0,0,"x","x"]
[105,"Bezdrátové přenosné tlačítko SOS                                          (hlídání baterie, IP65)","WB2-S","ks",3,0,0,"x","x"]
[109,"Tlačítko nouzového volání","EB-07N IP","ks",1,0,0,0,{"$f":"E42*H42","v":0}]
[null,"Táhlo nouzového volání","EC-07N IP","ks",8,0,0,0,0]
[null,"Táhlo a tlačítko nouzového volání","EBC-07N IP","ks",9,0,0,0,0]
[null,"GSM interface (s příslušenstvím)","GSM-SMS IP","ks",0,0,0,0,0]
[119,"Router","RB-07 IP","ks",1,0,0,0,0]
[126,"SQL server (do 30-ti oddělení)","SQLS/1U","ks",1,0,{"$f":"E47*F47","v":0},0,0]
[null,"redukce plechová dvojitá","KZM-05","ks",58,0,0,0,0]
[null,"IP rádio server","IPRS","ks",1,0,{"$f":"E49*F49","v":0},0,0]
[150,"Patch kabel","Patch 0,3m","ks",65,0,{"$f":"F50*E50","v":0},0,0]
[null,"Konektor RJ45 UTP CAT6 včetně ochrany a proměření","UTP CAT6 drát","ks",130,0,{"$f":"F51*E51","v":0},0,0]
[null,"Instalace a konfigurace systému",null,"ks",1,0,{"$f":"F52*E52","v":0},0,0]
[null,"Kontrolní provoz, zaškolení, vedlejší výdaje",null,"ks",1,0,0,0,0]
[null,"Výchozí revize dorozumívacího zařízení",null,"ks",1,0,0,0,0]
[null,"Práce za provozu (provoz investora)",null,"kpl",1,0,0,0,0]
[null,"Ekologická likvidace odpadu",null,"ks",1,0,0,0,0]
[null,"Testování určení přibližné polohy ,,zóny\" pacienta/klienta",null,"hod",10,0,0,0,0]
[null,"Doprava",null,"km",495,0,0,0,0]
[null,"Součty:",null,null,null,null,{"$f":"SUM(G7:G58)","v":0},null,{"$f":"SUM(I7:I58)","v":0}]
[]
[null,"Rekapitulace:"]
[null,"Dodávky a montáže celkem - cena bez DPH:",null,null,null,null,null,null,{"$f":"G59+I59","v":0}]
[null,"Ceny jsou uvedeny v cenové relaci roku 2024 v Kč.  "]

{"sheet":"1.NP-LDN-A-Revmatologie","index":6,"n_rows":63,"n_cols":9,"rows_kept":63,"cut":false,"hidden":false,"merged":[[62,1,62,8],[65,1,65,8],[0,1,0,8],[1,1,1,8],[2,1,2,8],[3,1,4,1],[3,2,4,2],[3,3,4,3],[3,4,4,4],[3,5,3,6],[3,7,3,8],[61,1,61,7],[63,1,63,8]]}
[null,"aqe"]
[null,"Objekt: Nemocnice Nový Bydžov - 1.NP - Budova LDN - A_Revmatologie_půdorys 1.NP_výkres č.5"]
[]
[null,"Název","Označení","MJ","Množství","materiál",null,"montáž"]
[null,null,null,null,null,"cena/ks","celkem","cena/ks","celkem"]
[null,"Dodávka a montáž technologie "]
[1,"Hlavní terminál, vč. adaptéru a kabelu k terminálu 2m (Touch screen monitor min. 10,4\", hlasitá a diskrétní komunikace, identifikace volajícího včetně jména klienta, možnost zobrazení informací z EPS, poslech radiových stanic na hlavním terminálu, volba IP radiostanic přímo na hlavním terminálu v uživatelském menu. Možnost integrace s bezdrátovým systémem a zobrazení bezdrátových bezpečnostních tlačítek s funkcí hlídání průchodu klientů zakázanou zónou, ve spojení s IP kamerou zobrazení online přenosu od vchodu na oddělení)","MT - 07 IP","ks",1,0,{"$f":"E7*F7","v":0},"x","x"]
[null,"Zásuvka terminálu","CMT-07 IP","ks",1,0,0,0,{"$f":"E8*H8","v":0}]
[6,"Datový rozvaděč nástěnný 19\"/15U - nástěnný\n600 x 770 x 395 mm, 22,2 kg","RA-07/15U","ks",1,0,0,0,{"$f":"E9*H9","v":0}]
[11,"Napájecí zdroj + lokální server ","PS-07 IP","ks",1,0,0,0,{"$f":"E10*H10","v":0}]
[12,"Rozvodný panel 8x 230V 19\"/2U","PDP 19\"/2U","ks",1,0,0,0,{"$f":"E11*H11","v":0}]
[13,"Záložní zdroj 230V, 1200VA","UPS1200VA","ks",1,0,0,0,{"$f":"E12*H12","v":0}]
[null,"SW - licence pro Hlavní terminál","SW - MT","ks",1,0,0,"x","x"]
[15,"SW - licence provozu účastníka","SW - L1","ks",27,0,0,"x","x"]
[16,"SW - databáze historie volání","SW - HC","ks",1,0,0,"x","x"]
[17,"SW - aktivace sdruženého provozu","SW - AW","ks",1,0,0,"x","x"]
[18,"SW - prohlížeč historie","SW - SQLHV","ks",1,0,0,"x","x"]
[20,"SW - bezdrátový modul","SW-WR","ks",2,0,0,"x","x"]
[25,"Univerzální police 19\"/1U","US 19\"/1U","ks",1,0,0,0,{"$f":"E19*H19","v":0}]
[null,"24\" LCD panel jednostranný na zeď s příslušenstvím","LCD-OW","ks",0,0,0,0,{"$f":"E20*H20","v":0}]
[28,"Telefonní zásuvka IN-OUT","TC","ks",1,0,0,0,{"$f":"E21*H21","v":0}]
[null,"Audio zásuvka","AC","ks",1,0,0,0,{"$f":"E22*H22","v":0}]
[29,"DECT Phone - (bezdrátový telefon DECT - analogová linka)","DECT PHONE","ks",1,0,0,0,{"$f":"E23*H23","v":0}]
[24,"Kabel telefonní přípojky","CTC","ks",1,0,0,"x","x"]
[124,"Repeater","Repeater","ks",1,0,0,0,{"$f":"E25*H25","v":0}]
[31,"Telefonní interface (pro analog. přístr.)","TI - 07 IP","ks",1,0,0,0,0]
[null,"Analog/VoIP brána","AG-07 IP","ks",1,0,0,0,0]
[34,"Datový switch 24 portů/19\" (CZ)","SWI - 24/19\"","ks",2,0,0,0,0]
[38,"Napájecí injektor 24 portů/19\"","POE - 24/19\"","ks",2,0,0,0,0]
[null,"POE SWI 24 portů","POE-SWI 24/19\"","ks",1,0,0,0,0]
[49,"Svítidlo signalizační LED","CL","ks",16,0,0,0,0]
[51,"Pokojový terminál ","RT-07 IP","ks",1,0,0,0,0]
[55,"Pokojový terminál hovorový s displejem\n(minimálně 4 programovatelná tlačítka, hovorové spojení s hlavním terminálem, příjem hovorového volání od lůžka klienta, displej s indentifikací místa volání, hlasová navigace - informace o volajícím, číslo pokoje/lůžka, centrální hlášení přenos hlasové informace - nucený poslech)","RT-07DV IP","ks",1,0,0,0,0]
[54,"Pokojový servisní terminál","ST-20 IP","ks",15,0,{"$f":"E34*F34","v":0},0,{"$f":"E34*H34","v":0}]
[null,"Přijímací bezdrátový modul centrální  \ndlouhý dosah           ","WRT-07 IP",null,2,0,{"$f":"E35*F35","v":0},0,{"$f":"E35*H35","v":0}]
[70,"Zásuvka pacienta s držákem a reproduktorem\n(přenos hlasitého hovorového spojení sestra - klient, přenos hlasité reprodukce rádia a centrální hlašení vždy v případě, je - li koncový prvek zavěšen v držáku, či zavěšen na hrazdě postele klienta)","BC-07HS IP","ks",27,0,0,0,0]
[80,"Terminál pacienta s tlačítkem volání ošetřovatelky ","PT - 07S IP\nR01.0","ks",27,0,0,"x","x"]
[88,"Kabel vytrhávací - částečně kroucený","CAB-PT-DC","ks",27,0,0,"x","x"]
[107,"Držák kabelu na hrazdu","CH1","ks",27,0,0,"x","x"]
[103,"Bezdrátové přenosné tlačítko                                                   (hlídání baterie, IP65)","WB2","ks",2,0,0,"x","x"]
[105,"Bezdrátové přenosné tlačítko SOS                                          (hlídání baterie, IP65)","WB2-S","ks",3,0,0,"x","x"]
[null,"Tlačítko nouzového volání","EB-07N IP","ks",0,0,0,0,{"$f":"E42*H42","v":0}]
[null,"Táhlo nouzového volání","EC-07N IP","ks",8,0,0,0,0]
[null,"Táhlo a tlačítko nouzového volání","EBC-07N IP","ks",8,0,0,0,0]
[null,"GSM interface (s příslušenstvím)","GSM-SMS IP","ks",0,0,0,0,0]
[119,"Router","RB-07 IP","ks",1,0,0,0,0]
[null,"SQL server (do 30-ti oddělení)","SQLS/1U","ks",0,0,{"$f":"E47*F47","v":0},0,0]
[null,"redukce plechová dvojitá","KZM-05","ks",43,0,0,0,0]
[null,"IP rádio server","IPRS","ks",0,0,{"$f":"E49*F49","v":0},0,0]
[150,"Patch kabel","Patch 0,3m","ks",50,0,{"$f":"F50*E50","v":0},0,0]
[null,"Konektor RJ45 UTP CAT5e včetně ochrany a proměření","UTP CAT6 drát","ks",100,0,{"$f":"F51*E51","v":0},0,0]
[null,"Instalace a konfigurace systému",null,"ks",1,0,{"$f":"F52*E52","v":0},0,0]
[null,"Kontrolní provoz, zaškolení, vedlejší výdaje",null,"ks",1,0,0,0,0]
[null,"Výchozí revize dorozumívacího zařízení",null,"ks",1,0,0,0,0]
[null,"Práce za provozu (provoz investora)",null,"kpl",1,0,0,0,0]
[null,"Ekologická likvidace odpadu",null,"ks",1,0,0,0,0]
[null,"Testování určení přibližné polohy ,,zóny\" pacienta/klienta",null,"hod",10,0,0,0,0]
[null,"Doprava",null,"km",495,0,0,0,0]
[null,"Součty:",null,null,null,null,{"$f":"SUM(G7:G58)","v":0},null,{"$f":"SUM(I7:I58)","v":0}]
[]
[null,"Rekapitulace:"]
[null,"Dodávky a montáže celkem - cena bez DPH:",null,null,null,null,null,null,{"$f":"G59+I59","v":0}]
[null,"Ceny jsou uvedeny v cenové relaci roku 2024 v Kč.  "]

{"sheet":"2.NP-LDN-A4.I","index":7,"n_rows":63,"n_cols":9,"rows_kept":63,"cut":false,"hidden":false,"merged":[[65,7,65,8],[66,1,66,8],[63,1,63,8],[0,1,0,8],[1,1,1,8],[2,1,2,8],[3,1,4,1],[3,2,4,2],[3,3,4,3],[3,4,4,4],[3,5,3,6],[3,7,3,8],[61,1,61,7],[62,1,62,8]]}
[null,"Výkaz výměr  \"Nemocnice Nový Bydžov - Kompletní výměna dorozumívacích zařízení sestra - pacient\""]
[null,"Objekt: Nemocnice Nový Bydžov - Budova LDN - A4 - I_půdorys 2.NP_výkres č.6"]
[]
[null,"Název","Označení","MJ","Množství","materiál",null,"montáž"]
[null,null,null,null,null,"cena/ks","celkem","cena/ks","celkem"]
[null,"Dodávka a montáž technologie "]
[1,"Hlavní terminál, vč. adaptéru a kabelu k terminálu 2m (Touch screen monitor min. 10,4\", hlasitá a diskrétní komunikace, identifikace volajícího včetně jména klienta, možnost zobrazení informací z EPS, poslech radiových stanic na hlavním terminálu, volba IP radiostanic přímo na hlavním terminálu v uživatelském menu. Možnost integrace s bezdrátovým systémem a zobrazení bezdrátových bezpečnostních tlačítek s funkcí hlídání průchodu klientů zakázanou zónou, ve spojení s IP kamerou zobrazení online přenosu od vchodu na oddělení)","MT - 07 IP","ks",1,0,{"$f":"E7*F7","v":0},"x","x"]
[null,"Zásuvka terminálu","CMT-07 IP","ks",1,0,0,0,{"$f":"E8*H8","v":0}]
[6,"Datový rozvaděč nástěnný 19\"/15U - nástěnný\n600 x 770 x 395 mm, 22,2 kg","RA-07/15U","ks",1,0,0,0,{"$f":"E9*H9","v":0}]
[11,"Napájecí zdroj + lokální server ","PS-07 IP","ks",1,0,0,0,{"$f":"E10*H10","v":0}]
[12,"Rozvodný panel 8x 230V 19\"/2U","PDP 19\"/2U","ks",1,0,0,0,{"$f":"E11*H11","v":0}]
[13,"Záložní zdroj 230V, 1200VA","UPS1200VA","ks",1,0,0,0,{"$f":"E12*H12","v":0}]
[null,"SW - licence pro Hlavní terminál","SW - MT","ks",1,0,0,"x","x"]
[15,"SW - licence provozu účastníka","SW - L1","ks",23,0,0,"x","x"]
[16,"SW - databáze historie volání","SW - HC","ks",1,0,0,"x","x"]
[17,"SW - aktivace sdruženého provozu","SW - AW","ks",1,0,0,"x","x"]
[18,"SW - prohlížeč historie","SW - SQLHV","ks",1,0,0,"x","x"]
[20,"SW - bezdrátový modul","SW-WR","ks",2,0,0,"x","x"]
[25,"Univerzální police 19\"/1U","US 19\"/1U","ks",1,0,0,0,{"$f":"E19*H19","v":0}]
[null,"24\" LCD panel jednostranný na zeď s příslušenstvím","LCD-OW","ks",0,0,0,0,{"$f":"E20*H20","v":0}]
[28,"Telefonní zásuvka IN-OUT","TC","ks",1,0,0,0,{"$f":"E21*H21","v":0}]
[null,"Audio zásuvka","AC","ks",1,0,0,0,{"$f":"E22*H22","v":0}]
[29,"DECT Phone - (bezdrátový telefon DECT - analogová linka)","DECT PHONE","ks",1,0,0,0,{"$f":"E23*H23","v":0}]
[24,"Kabel telefonní přípojky","CTC","ks",1,0,0,"x","x"]
[124,"Repeater","Repeater","ks",1,0,0,0,{"$f":"E25*H25","v":0}]
[31,"Telefonní interface (pro analog. přístr.)","TI - 07 IP","ks",1,0,0,0,0]
[null,"Analog/VoIP brána","AG-07 IP","ks",1,0,0,0,0]
[34,"Datový switch 24 portů/19\" (CZ)","SWI - 24/19\"","ks",1,0,0,0,0]
[38,"Napájecí injektor 24 portů/19\"","POE - 24/19\"","ks",2,0,0,0,0]
[null,"POE SWI 24 portů","POE-SWI 24/19\"","ks",1,0,0,0,0]
[49,"Svítidlo signalizační LED","CL","ks",13,0,0,0,0]
[51,"Pokojový terminál ","RT-07 IP","ks",1,0,0,0,0]
[55,"Pokojový terminál hovorový s displejem\n(minimálně 4 programovatelná tlačítka, hovorové spojení s hlavním terminálem, příjem hovorového volání od lůžka klienta, displej s indentifikací místa volání, hlasová navigace - informace o volajícím, číslo pokoje/lůžka, centrální hlášení přenos hlasové informace - nucený poslech)","RT-07DV IP","ks",1,0,0,0,0]
[54,"Pokojový servisní terminál","ST-20 IP","ks",13,0,{"$f":"E34*F34","v":0},0,{"$f":"E34*H34","v":0}]
[null,"Přijímací bezdrátový modul centrální  \ndlouhý dosah           ","WRT-07 IP",null,2,0,{"$f":"E35*F35","v":0},0,{"$f":"E35*H35","v":0}]
[70,"Zásuvka pacienta s držákem a reproduktorem\n(přenos hlasitého hovorového spojení sestra - klient, přenos hlasité reprodukce rádia a centrální hlašení vždy v případě, je - li koncový prvek zavěšen v držáku, či zavěšen na hrazdě postele klienta)","BC-07HS IP","ks",23,0,0,0,0]
[80,"Terminál pacienta s tlačítkem volání ošetřovatelky ","PT - 07S IP\nR01.0","ks",23,0,0,"x","x"]
[88,"Kabel vytrhávací - částečně kroucený","CAB-PT-DC","ks",23,0,0,"x","x"]
[107,"Držák kabelu na hrazdu","CH1","ks",23,0,0,"x","x"]
[103,"Bezdrátové přenosné tlačítko                                                   (hlídání baterie, IP65)","WB2","ks",2,0,0,"x","x"]
[105,"Bezdrátové přenosné tlačítko SOS                                          (hlídání baterie, IP65)","WB2-S","ks",3,0,0,"x","x"]
[null,"Tlačítko nouzového volání","EB-07N IP","ks",0,0,0,0,{"$f":"E42*H42","v":0}]
[null,"Táhlo nouzového volání","EC-07N IP","ks",6,0,0,0,0]
[null,"Táhlo a tlačítko nouzového volání","EBC-07N IP","ks",6,0,0,0,0]
[null,"GSM interface (s příslušenstvím)","GSM-SMS IP","ks",0,0,0,0,0]
[119,"Router","RB-07 IP","ks",1,0,0,0,0]
[null,"SQL server (do 30-ti oddělení)","SQLS/1U","ks",0,0,{"$f":"E47*F47","v":0},0,0]
[null,"redukce plechová dvojitá","KZM-05","ks",37,0,0,0,0]
[null,"IP rádio server","IPRS","ks",0,0,{"$f":"E49*F49","v":0},0,0]
[150,"Patch kabel","Patch 0,3m","ks",45,0,{"$f":"F50*E50","v":0},0,0]
[null,"Konektor RJ45 UTP CAT5e včetně ochrany a proměření","UTP CAT6 drát","ks",90,0,{"$f":"F51*E51","v":0},0,0]
[null,"Instalace a konfigurace systému",null,"ks",1,0,{"$f":"F52*E52","v":0},0,0]
[null,"Kontrolní provoz, zaškolení, vedlejší výdaje",null,"ks",1,0,0,0,0]
[null,"Výchozí revize dorozumívacího zařízení",null,"ks",1,0,0,0,0]
[null,"Práce za provozu (provoz investora)",null,"kpl",1,0,0,0,0]
[null,"Ekologická likvidace odpadu",null,"ks",1,0,0,0,0]
[null,"Testování určení přibližné polohy ,,zóny\" pacienta/klienta",null,"hod",10,0,0,0,0]
[null,"Doprava",null,"km",495,0,0,0,0]
[null,"Součty:",null,null,null,null,{"$f":"SUM(G7:G58)","v":0},null,{"$f":"SUM(I7:I58)","v":0}]
[]
[null,"Rekapitulace:"]
[null,"Dodávky a montáže celkem - cena bez DPH:",null,null,null,null,null,null,{"$f":"G59+I59","v":0}]
[null,"Ceny jsou uvedeny v cenové relaci roku 2024 v Kč.  "]

{"sheet":"3.NP-Interna","index":8,"n_rows":63,"n_cols":9,"rows_kept":63,"cut":false,"hidden":false,"merged":[[65,7,65,8],[66,1,66,8],[0,1,0,8],[1,1,1,8],[2,1,2,8],[3,1,4,1],[3,2,4,2],[3,3,4,3],[3,4,4,4],[3,5,3,6],[3,7,3,8],[61,1,61,7],[63,1,63,8],[62,1,62,8]]}
[null,"Výkaz výměr  \"Nemocnice Nový Bydžov - Kompletní výměna dorozumívacích zařízení sestra - pacient\""]
[null,"Objekt: Nemocnice Nový Bydžov - Budova- INTERNA_půdorys 3.NP_výkres č.7"]
[]
[null,"Název","Označení","MJ","Množství","materiál",null,"montáž"]
[null,null,null,null,null,"cena/ks","celkem","cena/ks","celkem"]
[null,"Dodávka a montáž technologie"]
[1,"Hlavní terminál, vč. adaptéru a kabelu k terminálu 2m (Touch screen monitor min. 10,4\", hlasitá a diskrétní komunikace, identifikace volajícího včetně jména klienta, možnost zobrazení informací z EPS, poslech radiových stanic na hlavním terminálu, volba IP radiostanic přímo na hlavním terminálu v uživatelském menu. Možnost integrace s bezdrátovým systémem a zobrazení bezdrátových bezpečnostních tlačítek s funkcí hlídání průchodu klientů zakázanou zónou, ve spojení s IP kamerou zobrazení online přenosu od vchodu na oddělení)","MT - 07 IP","ks",1,0,{"$f":"E7*F7","v":0},"x","x"]
[null,"Zásuvka terminálu","CMT-07 IP","ks",1,0,0,0,{"$f":"E8*H8","v":0}]
[6,"Datový rozvaděč nástěnný 19\"/15U - nástěnný\n600 x 770 x 395 mm, 22,2 kg","RA-07/15U","ks",1,0,0,0,{"$f":"E9*H9","v":0}]
[11,"Napájecí zdroj + lokální server ","PS-07 IP","ks",1,0,0,0,{"$f":"E10*H10","v":0}]
[12,"Rozvodný panel 8x 230V 19\"/2U","PDP 19\"/2U","ks",1,0,0,0,{"$f":"E11*H11","v":0}]
[13,"Záložní zdroj 230V, 1200VA","UPS1200VA","ks",1,0,0,0,{"$f":"E12*H12","v":0}]
[null,"SW - licence pro Hlavní terminál","SW - MT","ks",1,0,0,"x","x"]
[15,"SW - licence provozu účastníka","SW - L1","ks",31,0,0,"x","x"]
[16,"SW - databáze historie volání","SW - HC","ks",1,0,0,"x","x"]
[17,"SW - aktivace sdruženého provozu","SW - AW","ks",1,0,0,"x","x"]
[18,"SW - prohlížeč historie","SW - SQLHV","ks",1,0,0,"x","x"]
[20,"SW - bezdrátový modul","SW-WR","ks",2,0,0,"x","x"]
[25,"Univerzální police 19\"/1U","US 19\"/1U","ks",1,0,0,0,{"$f":"E19*H19","v":0}]
[null,"24\" LCD panel jednostranný na zeď s příslušenstvím","LCD-OW","ks",0,0,0,0,{"$f":"E20*H20","v":0}]
[28,"Telefonní zásuvka IN-OUT","TC","ks",1,0,0,0,{"$f":"E21*H21","v":0}]
[null,"Audio zásuvka","AC","ks",1,0,0,0,{"$f":"E22*H22","v":0}]
[29,"DECT Phone - (bezdrátový telefon DECT - analogová linka)","DECT PHONE","ks",1,0,0,0,{"$f":"E23*H23","v":0}]
[24,"Kabel telefonní přípojky","CTC","ks",1,0,0,"x","x"]
[124,"Repeater","Repeater","ks",1,0,0,0,{"$f":"E25*H25","v":0}]
[31,"Telefonní interface (pro analog. přístr.)","TI - 07 IP","ks",1,0,0,0,0]
[null,"Analog/VoIP brána","AG-07 IP","ks",1,0,0,0,0]
[34,"Datový switch 24 portů/19\" (CZ)","SWI - 24/19\"","ks",2,0,0,0,0]
[38,"Napájecí injektor 24 portů/19\"","POE - 24/19\"","ks",2,0,0,0,0]
[null,"POE SWI 24 portů","POE-SWI 24/19\"","ks",1,0,0,0,0]
[49,"Svítidlo signalizační LED","CL","ks",13,0,0,0,0]
[51,"Pokojový terminál ","RT-07 IP","ks",1,0,0,0,0]
[55,"Pokojový terminál hovorový s displejem\n(minimálně 4 programovatelná tlačítka, hovorové spojení s hlavním terminálem, příjem hovorového volání od lůžka klienta, displej s indentifikací místa volání, hlasová navigace - informace o volajícím, číslo pokoje/lůžka, centrální hlášení přenos hlasové informace - nucený poslech)","RT-07DV IP","ks",1,0,0,0,0]
[54,"Pokojový servisní terminál","ST-20 IP","ks",12,0,{"$f":"E34*F34","v":0},0,{"$f":"E34*H34","v":0}]
[null,"Přijímací bezdrátový modul centrální  \ndlouhý dosah           ","WRT-07 IP",null,2,0,{"$f":"E35*F35","v":0},0,{"$f":"E35*H35","v":0}]
[70,"Zásuvka pacienta s držákem a reproduktorem\n(přenos hlasitého hovorového spojení sestra - klient, přenos hlasité reprodukce rádia a centrální hlašení vždy v případě, je - li koncový prvek zavěšen v držáku, či zavěšen na hrazdě postele klienta)","BC-07HS IP","ks",31,0,0,0,0]
[80,"Terminál pacienta s tlačítkem volání ošetřovatelky ","PT - 07S IP\nR01.0","ks",31,0,0,"x","x"]
[88,"Kabel vytrhávací - částečně kroucený","CAB-PT-DC","ks",31,0,0,"x","x"]
[107,"Držák kabelu na hrazdu","CH1","ks",31,0,0,"x","x"]
[103,"Bezdrátové přenosné tlačítko                                                   (hlídání baterie, IP65)","WB2","ks",2,0,0,"x","x"]
[105,"Bezdrátové přenosné tlačítko SOS                                          (hlídání baterie, IP65)","WB2-S","ks",3,0,0,"x","x"]
[null,"Tlačítko nouzového volání","EB-07N IP","ks",0,0,0,0,{"$f":"E42*H42","v":0}]
[null,"Táhlo nouzového volání","EC-07N IP","ks",6,0,0,0,0]
[null,"Táhlo a tlačítko nouzového volání","EBC-07N IP","ks",6,0,0,0,0]
[null,"GSM interface (s příslušenstvím)","GSM-SMS IP","ks",0,0,0,0,0]
[119,"Router","RB-07 IP","ks",1,0,0,0,0]
[null,"SQL server (do 30-ti oddělení)","SQLS/1U","ks",0,0,{"$f":"E47*F47","v":0},0,0]
[null,"redukce plechová dvojitá","KZM-05","ks",44,0,0,0,0]
[null,"IP rádio server","IPRS","ks",0,0,{"$f":"E49*F49","v":0},0,0]
[150,"Patch kabel","Patch 0,3m","ks",55,0,{"$f":"F50*E50","v":0},0,0]
[null,"Konektor RJ45 UTP CAT5e včetně ochrany a proměření","UTP CAT6 drát","ks",110,0,{"$f":"F51*E51","v":0},0,0]
[null,"Instalace a konfigurace systému",null,"ks",1,0,{"$f":"F52*E52","v":0},0,0]
[null,"Kontrolní provoz, zaškolení, vedlejší výdaje",null,"ks",1,0,0,0,0]
[null,"Výchozí revize dorozumívacího zařízení",null,"ks",1,0,0,0,0]
[null,"Práce za provozu (provoz investora)",null,"kpl",1,0,0,0,0]
[null,"Ekologická likvidace odpadu",null,"ks",1,0,0,0,0]
[null,"Testování určení přibližné polohy ,,zóny\" pacienta/klienta",null,"hod",10,0,0,0,0]
[null,"Doprava",null,"km",495,0,0,0,0]
[null,"Součty:",null,null,null,null,{"$f":"SUM(G7:G58)","v":0},null,{"$f":"SUM(I7:I58)","v":0}]
[]
[null,"Rekapitulace:"]
[null,"Dodávky a montáže celkem - cena bez DPH:",null,null,null,null,null,null,{"$f":"G59+I59","v":0}]
[null,"Ceny jsou uvedeny v cenové relaci roku 2024 v Kč.  "]

{"sheet":"4.NP-Rehabilitace","index":9,"n_rows":63,"n_cols":9,"rows_kept":63,"cut":false,"hidden":false,"merged":[[65,1,65,8],[0,1,0,8],[1,1,1,8],[2,1,2,8],[3,1,4,1],[3,2,4,2],[3,3,4,3],[3,4,4,4],[3,5,3,6],[3,7,3,8],[61,1,61,7],[62,1,62,8],[63,1,63,8]]}
[null,"Výkaz výměr  \"Nemocnice Nový Bydžov - Kompletní výměna dorozumívacích zařízení sestra - pacient\""]
[null,"Objekt: Nemocnice Nový Bydžov - Budova - REHABILITACE_půdorys 4.NP_výkres č.8"]
[]
[null,"Název","Označení","MJ","Množství","materiál",null,"montáž"]
[null,null,null,null,null,"cena/ks","celkem","cena/ks","celkem"]
[null,"Dodávka a montáž technologie "]
[1,"Hlavní terminál, vč. adaptéru a kabelu k terminálu 2m (Touch screen monitor min. 10,4\", hlasitá a diskrétní komunikace, identifikace volajícího včetně jména klienta, možnost zobrazení informací z EPS, poslech radiových stanic na hlavním terminálu, volba IP radiostanic přímo na hlavním terminálu v uživatelském menu. Možnost integrace s bezdrátovým systémem a zobrazení bezdrátových bezpečnostních tlačítek s funkcí hlídání průchodu klientů zakázanou zónou, ve spojení s IP kamerou zobrazení online přenosu od vchodu na oddělení)","MT - 07 IP","ks",1,0,{"$f":"E7*F7","v":0},"x","x"]
[null,"Zásuvka terminálu","CMT-07 IP","ks",1,0,0,0,{"$f":"E8*H8","v":0}]
[6,"Datový rozvaděč nástěnný 19\"/15U - nástěnný\n600 x 770 x 395 mm, 22,2 kg","RA-07/15U","ks",1,0,0,0,{"$f":"E9*H9","v":0}]
[11,"Napájecí zdroj + lokální server ","PS-07 IP","ks",1,0,0,0,{"$f":"E10*H10","v":0}]
[12,"Rozvodný panel 8x 230V 19\"/2U","PDP 19\"/2U","ks",1,0,0,0,{"$f":"E11*H11","v":0}]
[13,"Záložní zdroj 230V, 1200VA","UPS1200VA","ks",1,0,0,0,{"$f":"E12*H12","v":0}]
[null,"SW - licence pro Hlavní terminál","SW - MT","ks",1,0,0,"x","x"]
[15,"SW - licence provozu účastníka","SW - L1","ks",35,0,0,"x","x"]
[16,"SW - databáze historie volání","SW - HC","ks",1,0,0,"x","x"]
[17,"SW - aktivace sdruženého provozu","SW - AW","ks",1,0,0,"x","x"]
[18,"SW - prohlížeč historie","SW - SQLHV","ks",1,0,0,"x","x"]
[20,"SW - bezdrátový modul","SW-WR","ks",2,0,0,"x","x"]
[25,"Univerzální police 19\"/1U","US 19\"/1U","ks",1,0,0,0,{"$f":"E19*H19","v":0}]
[null,"24\" LCD panel jednostranný na zeď s příslušenstvím","LCD-OW","ks",0,0,0,0,{"$f":"E20*H20","v":0}]
[28,"Telefonní zásuvka IN-OUT","TC","ks",1,0,0,0,{"$f":"E21*H21","v":0}]
[null,"Audio zásuvka","AC","ks",1,0,0,0,{"$f":"E22*H22","v":0}]
[29,"DECT Phone - (bezdrátový telefon DECT - analogová linka)","DECT PHONE","ks",1,0,0,0,{"$f":"E23*H23","v":0}]
[24,"Kabel telefonní přípojky","CTC","ks",1,0,0,"x","x"]
[124,"Repeater","Repeater","ks",1,0,0,0,{"$f":"E25*H25","v":0}]
[31,"Telefonní interface (pro analog. přístr.)","TI - 07 IP","ks",1,0,0,0,0]
[null,"Analog/VoIP brána","AG-07 IP","ks",1,0,0,0,0]
[34,"Datový switch 24 portů/19\" (CZ)","SWI - 24/19\"","ks",1,0,0,0,0]
[38,"Napájecí injektor 24 portů/19\"","POE - 24/19\"","ks",2,0,0,0,0]
[null,"POE SWI 24 portů","POE-SWI 24/19\"","ks",1,0,0,0,0]
[49,"Svítidlo signalizační LED","CL","ks",26,0,0,0,0]
[51,"Pokojový terminál ","RT-07 IP","ks",1,0,0,0,0]
[55,"Pokojový terminál hovorový s displejem\n(minimálně 4 programovatelná tlačítka, hovorové spojení s hlavním terminálem, příjem hovorového volání od lůžka klienta, displej s indentifikací místa volání, hlasová navigace - informace o volajícím, číslo pokoje/lůžka, centrální hlášení přenos hlasové informace - nucený poslech)","RT-07DV IP","ks",4,0,0,0,0]
[54,"Pokojový servisní terminál","ST-20 IP","ks",22,0,{"$f":"E34*F34","v":0},0,{"$f":"E34*H34","v":0}]
[null,"Přijímací bezdrátový modul centrální  \ndlouhý dosah           ","WRT-07 IP",null,2,0,{"$f":"E35*F35","v":0},0,{"$f":"E35*H35","v":0}]
[70,"Zásuvka pacienta s držákem a reproduktorem\n(přenos hlasitého hovorového spojení sestra - klient, přenos hlasité reprodukce rádia a centrální hlašení vždy v případě, je - li koncový prvek zavěšen v držáku, či zavěšen na hrazdě postele klienta)","BC-07HS IP","ks",35,0,0,0,0]
[80,"Terminál pacienta s tlačítkem volání ošetřovatelky ","PT - 07S IP\nR01.0","ks",35,0,0,"x","x"]
[88,"Kabel vytrhávací - částečně kroucený","CAB-PT-DC","ks",35,0,0,"x","x"]
[107,"Držák kabelu na hrazdu","CH1","ks",35,0,0,"x","x"]
[103,"Bezdrátové přenosné tlačítko                                                   (hlídání baterie, IP65)","WB2","ks",2,0,0,"x","x"]
[105,"Bezdrátové přenosné tlačítko SOS                                          (hlídání baterie, IP65)","WB2-S","ks",3,0,0,"x","x"]
[null,"Tlačítko nouzového volání","EB-07N IP","ks",0,0,0,0,{"$f":"E42*H42","v":0}]
[null,"Táhlo nouzového volání","EC-07N IP","ks",17,0,0,0,0]
[null,"Táhlo a tlačítko nouzového volání","EBC-07N IP","ks",8,0,0,0,0]
[null,"GSM interface (s příslušenstvím)","GSM-SMS IP","ks",0,0,0,0,0]
[119,"Router","RB-07 IP","ks",1,0,0,0,0]
[null,"SQL server (do 30-ti oddělení)","SQLS/1U","ks",0,0,{"$f":"E47*F47","v":0},0,0]
[null,"redukce plechová dvojitá","KZM-05","ks",61,0,0,0,0]
[null,"IP rádio server","IPRS","ks",0,0,{"$f":"E49*F49","v":0},0,0]
[150,"Patch kabel","Patch 0,3m","ks",70,0,{"$f":"F50*E50","v":0},0,0]
[null,"Konektor RJ45 UTP CAT5e včetně ochrany a proměření","UTP CAT6 drát","ks",140,0,{"$f":"F51*E51","v":0},0,0]
[null,"Instalace a konfigurace systému",null,"ks",1,0,{"$f":"F52*E52","v":0},0,0]
[null,"Kontrolní provoz, zaškolení, vedlejší výdaje",null,"ks",1,0,0,0,0]
[null,"Výchozí revize dorozumívacího zařízení",null,"ks",1,0,0,0,0]
[null,"Práce za provozu (provoz investora)",null,"kpl",1,0,0,0,0]
[null,"Ekologická likvidace odpadu",null,"ks",1,0,0,0,0]
[null,"Testování určení přibližné polohy ,,zóny\" pacienta/klienta",null,"hod",10,0,0,0,0]
[null,"Doprava",null,"km",495,0,0,0,0]
[null,"Součty:",null,null,null,null,{"$f":"SUM(G7:G58)","v":0},null,{"$f":"SUM(I7:I58)","v":0}]
[]
[null,"Rekapitulace:"]
[null,"Dodávky a montáže celkem - cena bez DPH:",null,null,null,null,null,null,{"$f":"G59+I59","v":0}]
[null,"Ceny jsou uvedeny v cenové relaci roku 2024 v Kč.  "]

{"sheet":"List1","index":10,"n_rows":0,"n_cols":0,"rows_kept":0,"cut":false,"hidden":false,"merged":[]}